[Event "22nd Ruzomberok Open 2019"]
[Site "Ruzomberok"]
[Date "2019.06.30"]
[Round "2.11"]
[White "Slyk, Piotr"]
[Black "Orvisky, Vladimir"]
[Result "0-1"]
[ECO "B02"]
[WhiteElo "1082"]
[BlackElo "1719"]
[Annotator "NA"]
[PlyCount "162"]
[EventDate "2019.06.29"]
[EventType "swiss"]
[EventCountry "SVK"]
[SourceTitle "playchess.com"]
[Source "ChessBase"]
[SourceQuality "1"]
[TimeControl "40/5400+30:1800+30"]

1. e4 {[%emt 0:00:00]} Nf6 {[%emt 0:00:00]} 2. d3 {[%emt 0:00:35]} e6 {[%emt 0:00:00]} 3. g3 {[%emt 0:00:46]} d6 {[%emt 0:00:10]} 4. Bg2 Be7 {[%emt 0:00:07]} 5. Nf3 {[%emt 0:01:07]} c6 {[%emt 0:00:11]} 6. O-O {[%emt 0:00:19]} O-O {[%emt 0:00:14]} 7. a3 {[%emt 0:00:50]} Nbd7 8. Nc3 e5 9. Bg5 h6 {[%emt 0:01:18]} 10. Bxf6 {[%emt 0:04:25]} Nxf6 {[%emt 0:00:39]} 11. d4 {[%emt 0:02:12]} exd4 {[%emt 0:02:37]} 12. Nxd4 {[%emt 0:00:17]} Re8 {[%emt 0:02:33]} 13. Nf3 {[%emt 0:01:38]} Qc7 {[%emt 0:06:48]} 14. Qd4 {[%emt 0:01:37]} Bf8 {[%emt 0:07:38]} 15. Nd2 {[%emt 0:01:00]} b5 {[%emt 0:05:34]} 16. a4 {[%emt 0:00:46]} bxa4 {[%emt 0:00:55]} 17. Rxa4 {[%emt 0:00:33]} Bd7 {[%emt 0:00:30]} 18. Rfa1 {[%emt 0:00:42]} c5 {[%emt 0:01:50]} 19. Qd3 {[%emt 0:01:18]} Bxa4 {[%emt 0:07:33]} 20. Rxa4 {[%emt 0:00:56]} Rab8 {[%emt 0:07:01]} 21. b3 {[%emt 0:00:34]} Qd7 {[%emt 0:00:35]} 22. Nd5 {[%emt 0:01:31]} Nxd5 {[%emt 0:08:38]} 23. Qxd5 {[%emt 0:00:39]} Re5 {[%emt 0:05:03]} 24. Qd3 {[%emt 0:00:31]} Ree8 {[%emt 0:00:44]} 25. Ra6 {[%emt 0:00:54]} Rb6 {[%emt 0:00:01]} 26. Rxb6 {[%emt 0:00:33]} axb6 {[%emt 0:05:13]} 27. Nc4 {[%emt 0:00:48]} b5 {[%emt 0:02:48]} 28. Ne3 {[%emt 0:00:38]} g6 {[%emt 0:00:29]} 29. h3 {[%emt 0:00:53]} Bg7 {[%emt 0:01:10]} 30. Nd5 {[%emt 0:01:51]} b4 {[%emt 0:05:06]} 31. Kh2 {[%emt 0:01:12]} Rf8 {[%emt 0:01:29]} 32. Nb6 {[%emt 0:00:53]} Qe6 {[%emt 0:00:01]} 33. Nc4 {[%emt 0:00:46]} Rd8 {[%emt 0:00:35]} 34. Nb6 {[%emt 0:02:57]} Bd4 {[%emt 0:00:38]} 35. Nd5 {[%emt 0:00:37]} Bxf2 {[%emt 0:00:30]} 36. Qf3 {[%emt 0:01:31]} Bd4 {[%emt 0:00:46]} 37. Nc7 {[%emt 0:01:53]} Qf6 {[%emt 0:00:03]} 38. Qxf6 {[%emt 0:01:04]} Bxf6 {[%emt 0:00:26]} 39. Nb5 {[%emt 0:00:36]} Be5 {[%emt 0:01:57]} 40. Bf1 {[%emt 0:01:04]} d5 {[%emt 0:00:04]} 41. exd5 {[%emt 0:31:02]} Rxd5 {[%emt 0:30:01]} 42. Bd3 {[%emt 0:01:36]} Bb8 {[%emt 0:01:26]} 43. Kg2 {[%emt 0:00:29]} h5 {[%emt 0:00:50]} 44. h4 {[%emt 0:00:52]} Kg7 {[%emt 0:02:01]} 45. Kf3 {[%emt 0:00:32]} f5 {[%emt 0:02:34]} 46. Bc4 Rd1 {[%emt 0:00:22]} 47. c3 {[%emt 0:03:45]} Rg1 {[%emt 0:00:11]} 48. cxb4 {[%emt 0:00:36]} cxb4 {[%emt 0:00:51]} 49. Nd4 {[%emt 0:00:42]} Rxg3+ {[%emt 0:00:19]} 50. Ke2 {[%emt 0:01:27]} Rg4 {[%emt 0:00:48]} 51. Nf3 {[%emt 0:00:54]} Bg3 {[%emt 0:00:32]} 52. Bb5 {[%emt 0:01:02]} Bxh4 {[%emt 0:01:01]} 53. Bc6 {[%emt 0:01:30]} Bg3 {[%emt 0:00:17]} 54. Kf1 {[%emt 0:01:03]} h4 {[%emt 0:00:28]} 55. Kg2 {[%emt 0:00:32]} g5 {[%emt 0:00:19]} 56. Kh3 {[%emt 0:01:10]} Bf4 {[%emt 0:00:26]} 57. Nxg5 {[%emt 0:03:00]} Bxg5 58. Bd7 {[%emt 0:00:40]} Rg3+ {[%emt 0:00:49]} 59. Kh2 {[%emt 0:00:15]} f4 {[%emt 0:00:00]} 60. Be6 f3 {[%emt 0:01:05]} 61. Bc4 {[%emt 0:01:25]} f2 {[%emt 0:00:22]} 62. Kh1 {[%emt 0:01:26]} Rg1+ {[%emt 0:00:32]} 63. Kh2 {[%emt 0:00:28]} Bf4+ 64. Kh3 Bg3 65. Kg4 f1=Q {[%emt 0:01:05]} 66. Bxf1 {[%emt 0:03:48]} Rxf1 {[%emt 0:00:21]} 67. Kh3 {[%emt 0:00:47]} Kg6 {[%emt 0:00:06]} 68. Kg2 {[%emt 0:00:41]} Rf2+ {[%emt 0:00:26]} 69. Kh3 {[%emt 0:00:19]} Rh2+ {[%emt 0:00:11]} 70. Kg4 {[%emt 0:00:16]} Rb2 71. Kf3 Rxb3+ 72. Kg4 Be1 73. Kf4 h3 74. Kg4 h2 75. Kf4 h1=Q {[%emt 0:02:37]} 76. Ke5 {[%emt 0:06:29]} Re3+ {[%emt 0:00:12]} 77. Kd4 {[%emt 0:00:15]} Qe4+ 78. Kc5 {[%emt 0:00:21]} Rc3+ {[%emt 0:00:40]} 79. Kd6 {[%emt 0:00:25]} Bg3+ {[%emt 0:00:19]} 80. Kd7 {[%emt 0:00:17]} Rc7+ 81. Kd8 {[%emt 0:00:13]} Qe7# 0-1

[Event "22nd Ruzomberok Open 2019"]
[Site "Ruzomberok"]
[Date "2019.06.30"]
[Round "2.12"]
[White "Karcol, Jan"]
[Black "Bombek, Peter"]
[Result "0-1"]
[ECO "C01"]
[WhiteElo "1882"]
[BlackElo "2159"]
[Annotator "NA"]
[PlyCount "192"]
[EventDate "2019.06.29"]
[EventType "swiss"]
[EventCountry "SVK"]
[SourceTitle "playchess.com"]
[Source "ChessBase"]
[SourceQuality "1"]
[TimeControl "40/5400+30:1800+30"]

1. e4 {[%emt 0:00:00]} e6 {[%emt 0:00:00]} 2. d4 {[%emt 0:00:02]} d5 {[%emt 0:00:00]} 3. exd5 {[%emt 0:00:17]} exd5 {[%emt 0:00:00]} 4. Bd3 {[%emt 0:00:17]} c5 {[%emt 0:00:00]} 5. dxc5 {[%emt 0:04:24]} Bxc5 {[%emt 0:00:29]} 6. Nf3 {[%emt 0:01:13]} Nf6 {[%emt 0:00:44]} 7. Bg5 {[%emt 0:02:13]} O-O {[%emt 0:02:29]} 8. O-O {[%emt 0:00:10]} h6 {[%emt 0:01:32]} 9. Bh4 {[%emt 0:00:37]} Nc6 {[%emt 0:08:28]} 10. Nc3 {[%emt 0:06:45]} Be6 {[%emt 0:04:04]} 11. Qd2 {[%emt 0:05:27]} Be7 {[%emt 0:03:06]} 12. Rfe1 {[%emt 0:01:09]} Re8 {[%emt 0:04:25]} 13. Rad1 {[%emt 0:02:40]} Qb6 {[%emt 0:03:29]} 14. Qc1 {[%emt 0:04:50]} Rac8 {[%emt 0:03:32]} 15. a3 {[%emt 0:11:45]} Nd7 {[%emt 0:09:01]} 16. Bxe7 {[%emt 0:01:48]} Rxe7 {[%emt 0:03:54]} 17. Na4 {[%emt 0:02:06]} Qa5 {[%emt 0:02:14]} 18. Nc3 {[%emt 0:00:12]} Nf6 {[%emt 0:02:46]} 19. Qf4 {[%emt 0:02:49]} Qb6 {[%emt 0:02:23]} 20. Na4 {[%emt 0:01:37]} Qc7 {[%emt 0:01:32]} 21. Qxc7 {[%emt 0:00:32]} Rcxc7 {[%emt 0:02:31]} 22. Nc3 {[%emt 0:00:11]} a6 {[%emt 0:01:16]} 23. Ne2 {[%emt 0:06:16]} Bg4 {[%emt 0:02:33]} 24. c3 {[%emt 0:04:31]} Bxf3 {[%emt 0:03:25]} 25. gxf3 {[%emt 0:00:02]} Re5 {[%emt 0:02:09]} 26. f4 {[%emt 0:05:16]} Ree7 {[%emt 0:03:58]} 27. Ng3 {[%emt 0:04:42]} g6 {[%emt 0:00:27]} 28. Bb1 {[%emt 0:02:35]} Rxe1+ {[%emt 0:02:59]} 29. Rxe1 {[%emt 0:00:02]} d4 {[%emt 0:00:34]} 30. Ne2 {[%emt 0:03:04]} dxc3 {[%emt 0:04:37]} 31. Nxc3 {[%emt 0:00:29]} Nd4 {[%emt 0:01:58]} 32. Kg2 {[%emt 0:02:14]} Kg7 {[%emt 0:00:53]} 33. Ba2 {[%emt 0:08:13]} Nf5 {[%emt 0:06:19]} 34. Re2 {[%emt 0:03:54]} Rd7 {[%emt 0:03:17]} 35. Bb1 {[%emt 0:02:18]} Nd4 {[%emt 0:04:31]} 36. Rd2 {[%emt 0:03:27]} Kf8 {[%emt 0:00:42]} 37. Ne2 {[%emt 0:01:47]} Nxe2 {[%emt 0:00:26]} 38. Rxe2 {[%emt 0:00:02]} a5 {[%emt 0:03:26]} 39. h4 {[%emt 0:00:22]} Rd4 {[%emt 0:02:17]} 40. f5 {[%emt 0:05:58]} gxf5 {[%emt 0:03:22]} 41. Bxf5 {[%emt 0:30:31]} Rxh4 {[%emt 0:32:19]} 42. Rc2 {[%emt 0:01:28]} Rh5 {[%emt 0:00:00]} 43. Rc8+ {[%emt 0:00:00]} Kg7 {[%emt 0:00:00]} 44. Bd3 {[%emt 0:00:00]} Rd5 {[%emt 0:00:00]} 45. Bc4 {[%emt 0:00:00]} Rd2 {[%emt 0:00:00]} 46. Rc7 {[%emt 0:00:00]} Rd7 {[%emt 0:00:00]} 47. Rc5 {[%emt 0:00:00]} Rd2 {[%emt 0:00:00]} 48. Rc7 {[%emt 0:00:00]} Rd7 {[%emt 0:00:00]} 49. Rc5 {[%emt 0:00:00]} b6 {[%emt 0:00:00]} 50. Rc6 {[%emt 0:00:00]} Rb7 {[%emt 0:00:00]} 51. a4 {[%emt 0:00:00]} Ng4 {[%emt 0:00:00]} 52. Ba6 {[%emt 0:00:00]} Rb8 {[%emt 0:00:00]} 53. Rc7 {[%emt 0:00:00]} Ne5 {[%emt 0:00:00]} 54. f4 {[%emt 0:00:00]} Ng6 {[%emt 0:00:00]} 55. Bc4 {[%emt 0:00:00]} Nxf4+ {[%emt 0:00:00]} 56. Kf3 {[%emt 0:00:00]} Nh3 {[%emt 0:00:00]} 57. Rxf7+ {[%emt 0:00:00]} Kg6 {[%emt 0:00:00]} 58. Rd7 {[%emt 0:00:00]} Ng5+ {[%emt 0:00:00]} 59. Kg2 {[%emt 0:00:00]} Kf5 {[%emt 0:03:14]} 60. Be2 {[%emt 0:00:00]} Rf8 {[%emt 0:01:35]} 61. Rd6 {[%emt 0:00:00]} Rf6 {[%emt 0:00:16]} 62. Bd3+ {[%emt 0:00:00]} Ke5 {[%emt 0:00:05]} 63. Rd8 {[%emt 0:00:25]} Rd6 {[%emt 0:00:30]} 64. Re8+ {[%emt 0:00:26]} Kd4 {[%emt 0:00:14]} 65. Bb5 {[%emt 0:01:48]} Ne6 {[%emt 0:01:40]} 66. Rh8 {[%emt 0:01:41]} Nf4+ {[%emt 0:00:42]} 67. Kf3 {[%emt 0:00:17]} Nd3 68. Bxd3 {[%emt 0:01:05]} Kxd3 {[%emt 0:00:27]} 69. Rc8 {[%emt 0:00:22]} Rd4 {[%emt 0:00:55]} 70. Rc3+ {[%emt 0:00:48]} Kd2 {[%emt 0:00:08]} 71. Rc6 {[%emt 0:00:07]} Rb4 {[%emt 0:00:44]} 72. Rxh6 {[%emt 0:00:21]} Rxb2 {[%emt 0:00:22]} 73. Rd6+ {[%emt 0:00:30]} Kc3 {[%emt 0:00:52]} 74. Rc6+ {[%emt 0:00:20]} Kd4 {[%emt 0:00:53]} 75. Kf4 {[%emt 0:00:32]} Rb4 {[%emt 0:00:59]} 76. Kf3 {[%emt 0:02:00]} Kd5 {[%emt 0:00:13]} 77. Rh6 {[%emt 0:00:17]} Kc4 {[%emt 0:00:23]} 78. Ke3 {[%emt 0:00:40]} Kb3 {[%emt 0:00:21]} 79. Kd3 Kxa4 {[%emt 0:00:19]} 80. Kc3 {[%emt 0:00:31]} b5 {[%emt 0:01:00]} 81. Rh1 {[%emt 0:00:30]} Rb3+ {[%emt 0:00:22]} 82. Kc2 {[%emt 0:00:22]} Rg3 {[%emt 0:00:27]} 83. Kb2 {[%emt 0:00:42]} Rg2+ {[%emt 0:00:50]} 84. Kb1 {[%emt 0:00:16]} Rd2 {[%emt 0:01:58]} 85. Ka1 {[%emt 0:00:14]} Kb3 {[%emt 0:01:09]} 86. Rh3+ {[%emt 0:01:06]} Kc4 {[%emt 0:00:12]} 87. Rh4+ {[%emt 0:00:09]} Rd4 {[%emt 0:00:11]} 88. Rh5 {[%emt 0:00:27]} a4 {[%emt 0:00:23]} 89. Rh1 {[%emt 0:01:16]} Kc3 {[%emt 0:01:58]} 90. Rc1+ {[%emt 0:00:27]} Kd2 {[%emt 0:00:42]} 91. Rb1 {[%emt 0:00:39]} b4 {[%emt 0:00:18]} 92. Rh1 {[%emt 0:01:05]} Kc2 {[%emt 0:00:31]} 93. Ka2 {[%emt 0:01:05]} Rd1 {[%emt 0:01:19]} 94. Rh2+ {[%emt 0:00:22]} Rd2 {[%emt 0:00:06]} 95. Rh8 {[%emt 0:02:29]} Kc3+ {[%emt 0:00:27]} 96. Ka1 {[%emt 0:01:04]} Rd1+ {[%emt 0:00:08]} 0-1

[Event "22nd Ruzomberok Open 2019"]
[Site "Ruzomberok"]
[Date "2019.06.30"]
[Round "2.13"]
[White "Mrvova, Alena"]
[Black "Marsina, Stefan"]
[Result "1-0"]
[ECO "C00"]
[WhiteElo "2153"]
[BlackElo "1857"]
[Annotator "NA"]
[PlyCount "67"]
[EventDate "2019.06.29"]
[EventType "swiss"]
[EventCountry "SVK"]
[SourceTitle "playchess.com"]
[Source "ChessBase"]
[SourceQuality "1"]
[TimeControl "40/5400+30:1800+30"]

1. e4 {[%emt 0:00:00]} e6 {[%emt 0:00:00]} 2. d3 {[%emt 0:00:05]} d5 {[%emt 0:00:03]} 3. Nd2 {[%emt 0:00:35]} c5 {[%emt 0:02:33]} 4. g3 {[%emt 0:00:46]} Nf6 {[%emt 0:01:39]} 5. Bg2 {[%emt 0:01:08]} Be7 {[%emt 0:04:41]} 6. e5 {[%emt 0:03:46]} Nfd7 {[%emt 0:00:30]} 7. f4 {[%emt 0:00:16]} Nc6 {[%emt 0:08:20]} 8. Ndf3 {[%emt 0:02:31]} O-O {[%emt 0:02:50]} 9. Nh3 {[%emt 0:02:49]} f6 {[%emt 0:08:29]} 10. exf6 {[%emt 0:00:45]} Bxf6 {[%emt 0:00:33]} 11. O-O {[%emt 0:01:26]} e5 {[%emt 0:01:53]} 12. Nhg5 {[%emt 0:02:04]} Bxg5 {[%emt 0:06:57]} 13. Nxg5 {[%emt 0:14:29]} Nf6 {[%emt 0:00:19]} 14. f5 {[%emt 0:03:11]} Nd4 {[%emt 0:22:38]} 15. g4 {[%emt 0:02:08]} h6 {[%emt 0:05:31]} 16. Nh3 {[%emt 0:01:12]} Nh7 {[%emt 0:02:03]} 17. c3 {[%emt 0:00:44]} Nc6 {[%emt 0:01:22]} 18. Qb3 {[%emt 0:02:31]} Nf6 {[%emt 0:02:26]} 19. Nf2 {[%emt 0:00:32]} Na5 {[%emt 0:04:32]} 20. Qd1 {[%emt 0:02:06]} c4 {[%emt 0:01:03]} 21. b4 {[%emt 0:03:09]} cxb3 {[%emt 0:00:52]} 22. axb3 {[%emt 0:00:05]} Qb6 {[%emt 0:00:22]} 23. b4 {[%emt 0:00:53]} Nc6 {[%emt 0:00:22]} 24. h3 {[%emt 0:01:58]} d4 {[%emt 0:04:16]} 25. Qb3+ {[%emt 0:00:47]} Kh7 {[%emt 0:00:46]} 26. c4 {[%emt 0:02:22]} a5 {[%emt 0:06:10]} 27. b5 {[%emt 0:00:49]} Nd8 {[%emt 0:03:07]} 28. Bd2 {[%emt 0:02:06]} Bd7 {[%emt 0:02:32]} 29. Qa3 {[%emt 0:00:32]} Nf7 {[%emt 0:04:24]} 30. Bxa5 {[%emt 0:01:55]} Qa7 {[%emt 0:00:56]} 31. Qb2 {[%emt 0:01:43]} Rfe8 {[%emt 0:00:44]} 32. Bb4 {[%emt 0:03:02]} Qb6 {[%emt 0:00:37]} 33. Qe2 {[%emt 0:01:17]} Qc7 {[%emt 0:02:23]} 34. h4 {[%emt 0:01:41]} 1-0

[Event "22nd Ruzomberok Open 2019"]
[Site "Ruzomberok"]
[Date "2019.06.30"]
[Round "2.14"]
[White "Profant, Jan"]
[Black "Motycakova, Monika"]
[Result "0-1"]
[ECO "A20"]
[WhiteElo "1871"]
[BlackElo "2150"]
[Annotator "NA"]
[PlyCount "42"]
[EventDate "2019.06.29"]
[EventType "swiss"]
[EventCountry "SVK"]
[SourceTitle "playchess.com"]
[Source "ChessBase"]
[SourceQuality "1"]
[TimeControl "40/5400+30:1800+30"]

1. c4 {[%emt 0:00:00]} e5 {[%emt 0:00:00]} 2. g3 {[%emt 0:00:00]} Nf6 {[%emt 0:00:16]} 3. Bg2 {[%emt 0:00:00]} d5 {[%emt 0:00:36]} 4. cxd5 {[%emt 0:00:01]} Nxd5 {[%emt 0:00:04]} 5. Nc3 {[%emt 0:00:09]} Nb6 {[%emt 0:01:32]} 6. Nf3 {[%emt 0:00:23]} Nc6 {[%emt 0:00:04]} 7. a3 {[%emt 0:00:17]} Be7 {[%emt 0:00:31]} 8. b4 {[%emt 0:00:54]} Be6 {[%emt 0:02:43]} 9. b5 {[%emt 0:02:24]} Nd4 {[%emt 0:03:39]} 10. Rb1 {[%emt 0:01:22]} f6 {[%emt 0:12:11]} 11. O-O {[%emt 0:06:38]} O-O {[%emt 0:03:11]} 12. d3 {[%emt 0:07:39]} a6 {[%emt 0:08:59]} 13. a4 {[%emt 0:05:35]} axb5 {[%emt 0:01:47]} 14. axb5 {[%emt 0:00:13]} Qd7 {[%emt 0:03:09]} 15. Ne1 {[%emt 0:03:51]} Nd5 {[%emt 0:05:14]} 16. Nxd5 {[%emt 0:01:52]} Bxd5 {[%emt 0:00:09]} 17. b6 {[%emt 0:02:21]} cxb6 {[%emt 0:08:24]} 18. Rxb6 {[%emt 0:03:19]} Ra1 {[%emt 0:00:20]} 19. Bxd5+ {[%emt 0:07:39]} Qxd5 {[%emt 0:00:18]} 20. Nc2 {[%emt 0:00:11]} Rxc1 {[%emt 0:01:33]} 21. Qxc1 {[%emt 0:00:25]} Nxe2# 0-1

[Event "22nd Ruzomberok Open 2019"]
[Site "Ruzomberok"]
[Date "2019.06.30"]
[Round "2.15"]
[White "Vacek, Ondrej"]
[Black "Salomons, Lorenzo"]
[Result "1-0"]
[ECO "D02"]
[WhiteElo "2125"]
[BlackElo "1842"]
[Annotator "NA"]
[PlyCount "39"]
[EventDate "2019.06.29"]
[EventType "swiss"]
[EventCountry "SVK"]
[SourceTitle "playchess.com"]
[Source "ChessBase"]
[SourceQuality "1"]
[TimeControl "40/5400+30:1800+30"]

1. Nf3 {[%emt 0:00:00]} d5 {[%emt 0:00:00]} 2. d4 {[%emt 0:00:00]} Nf6 {[%emt 0:00:21]} 3. c4 {[%emt 0:00:00]} e6 {[%emt 0:00:28]} 4. g3 {[%emt 0:00:00]} b6 {[%emt 0:00:43]} 5. Bg2 {[%emt 0:00:10]} c6 {[%emt 0:17:10]} 6. O-O {[%emt 0:01:25]} Be7 {[%emt 0:00:56]} 7. Nc3 {[%emt 0:01:07]} O-O {[%emt 0:00:27]} 8. Ne5 {[%emt 0:02:27]} Nfd7 {[%emt 0:01:00]} 9. cxd5 {[%emt 0:01:30]} Nxe5 {[%emt 0:00:53]} 10. dxe5 {[%emt 0:00:21]} cxd5 {[%emt 0:02:16]} 11. Nxd5 {[%emt 0:01:45]} Bb7 {[%emt 0:04:28]} 12. Nf6+ {[%emt 0:03:09]} Bxf6 {[%emt 0:01:12]} 13. Bxb7 {[%emt 0:00:19]} Nd7 {[%emt 0:00:18]} 14. Bxa8 {[%emt 0:00:47]} Nxe5 {[%emt 0:00:16]} 15. Qxd8 {[%emt 0:00:17]} Rxd8 {[%emt 0:00:01]} 16. Bg2 {[%emt 0:00:17]} Nc4 {[%emt 0:00:32]} 17. Rb1 {[%emt 0:00:21]} Nd2 {[%emt 0:00:39]} 18. Bxd2 {[%emt 0:00:06]} Rxd2 {[%emt 0:00:17]} 19. Bf3 {[%emt 0:00:17]} Bxb2 {[%emt 0:00:19]} 20. Rfd1 {[%emt 0:00:11]} 1-0

[Event "22nd Ruzomberok Open 2019"]
[Site "Ruzomberok"]
[Date "2019.06.30"]
[Round "2.16"]
[White "Hrnciar, Roman"]
[Black "Jakab, Stefan"]
[Result "1-0"]
[ECO "A03"]
[WhiteElo "2096"]
[BlackElo "1751"]
[Annotator "NA"]
[PlyCount "67"]
[EventDate "2019.06.29"]
[EventType "swiss"]
[EventCountry "SVK"]
[SourceTitle "playchess.com"]
[Source "ChessBase"]
[SourceQuality "1"]
[TimeControl "40/5400+30:1800+30"]

1. f4 {[%emt 0:00:00]} d5 {[%emt 0:00:00]} 2. e3 {[%emt 0:00:00]} g6 {[%emt 0:00:31]} 3. Nf3 {[%emt 0:00:09]} Bg7 {[%emt 0:01:14]} 4. Be2 {[%emt 0:00:12]} Nc6 {[%emt 0:02:25]} 5. O-O {[%emt 0:00:47]} Nf6 {[%emt 0:01:04]} 6. Bb5 {[%emt 0:00:26]} Bd7 {[%emt 0:04:32]} 7. Qe2 {[%emt 0:01:37]} a6 {[%emt 0:06:48]} 8. Bxc6 {[%emt 0:01:34]} Bxc6 {[%emt 0:00:38]} 9. Ne5 {[%emt 0:00:10]} Bb5 {[%emt 0:05:10]} 10. d3 {[%emt 0:00:30]} e6 {[%emt 0:02:44]} 11. Nd2 {[%emt 0:00:27]} Qe7 {[%emt 0:06:54]} 12. b3 {[%emt 0:02:33]} c5 {[%emt 0:08:53]} 13. c4 {[%emt 0:01:03]} Bd7 {[%emt 0:02:46]} 14. Bb2 {[%emt 0:00:15]} O-O {[%emt 0:01:23]} 15. Ndf3 {[%emt 0:01:47]} b5 {[%emt 0:03:22]} 16. Rac1 {[%emt 0:03:10]} Rac8 {[%emt 0:02:53]} 17. g4 {[%emt 0:00:23]} dxc4 {[%emt 0:03:54]} 18. bxc4 {[%emt 0:01:00]} bxc4 {[%emt 0:00:46]} 19. dxc4 {[%emt 0:13:26]} Bc6 {[%emt 0:05:45]} 20. Nxc6 {[%emt 0:08:43]} Rxc6 {[%emt 0:00:05]} 21. Ne5 {[%emt 0:00:31]} Rcc8 {[%emt 0:00:47]} 22. g5 {[%emt 0:01:54]} Ne4 {[%emt 0:02:56]} 23. Rfd1 {[%emt 0:03:52]} Rfd8 {[%emt 0:10:38]} 24. Rxd8+ {[%emt 0:01:50]} Qxd8 {[%emt 0:00:35]} 25. Rd1 {[%emt 0:01:46]} Qb6 {[%emt 0:03:33]} 26. Qc2 {[%emt 0:03:13]} Rd8 {[%emt 0:06:28]} 27. Rxd8+ {[%emt 0:05:00]} Qxd8 {[%emt 0:00:05]} 28. Qxe4 {[%emt 0:00:16]} Qd1+ {[%emt 0:00:28]} 29. Kf2 {[%emt 0:00:10]} Qd2+ {[%emt 0:00:54]} 30. Kg3 {[%emt 0:00:13]} Qxb2 {[%emt 0:01:42]} 31. Qa8+ {[%emt 0:00:14]} Bf8 {[%emt 0:00:44]} 32. Qa7 {[%emt 0:00:28]} Bd6 {[%emt 0:01:05]} 33. Qxf7+ {[%emt 0:00:15]} Kh8 {[%emt 0:00:14]} 34. Qf6+ {[%emt 0:00:21]} 1-0

[Event "22nd Ruzomberok Open 2019"]
[Site "Ruzomberok"]
[Date "2019.06.30"]
[Round "2.17"]
[White "Stanko, Ivan"]
[Black "Cech, Dominik"]
[Result "1/2-1/2"]
[ECO "C44"]
[WhiteElo "1859"]
[BlackElo "2092"]
[Annotator "NA"]
[PlyCount "71"]
[EventDate "2019.06.29"]
[EventType "swiss"]
[EventCountry "SVK"]
[SourceTitle "playchess.com"]
[Source "ChessBase"]
[SourceQuality "1"]
[TimeControl "40/5400+30:1800+30"]

1. e4 {[%emt 0:01:25]} e5 {[%emt 0:00:00]} 2. Nf3 {[%emt 0:00:52]} Nc6 {[%emt 0:00:03]} 3. d4 {[%emt 0:00:34]} exd4 {[%emt 0:00:17]} 4. Nxd4 {[%emt 0:00:17]} Nf6 {[%emt 0:00:18]} 5. Nxc6 {[%emt 0:00:37]} bxc6 {[%emt 0:00:12]} 6. Bd3 {[%emt 0:00:24]} d5 {[%emt 0:01:01]} 7. exd5 {[%emt 0:01:01]} cxd5 {[%emt 0:00:36]} 8. Nc3 {[%emt 0:02:22]} c6 {[%emt 0:03:16]} 9. O-O {[%emt 0:01:05]} Be7 {[%emt 0:00:54]} 10. Re1 {[%emt 0:01:30]} O-O {[%emt 0:01:14]} 11. Bg5 {[%emt 0:04:17]} h6 {[%emt 0:07:55]} 12. Bh4 {[%emt 0:06:30]} Rb8 {[%emt 0:08:13]} 13. Rb1 {[%emt 0:00:19]} Rb4 {[%emt 0:05:47]} 14. Bg3 {[%emt 0:00:15]} Bd6 {[%emt 0:06:33]} 15. a3 {[%emt 0:13:48]} Bxg3 {[%emt 0:19:42]} 16. hxg3 {[%emt 0:01:07]} Rb8 {[%emt 0:03:46]} 17. Na4 {[%emt 0:04:38]} Ng4 {[%emt 0:11:54]} 18. Qd2 {[%emt 0:06:42]} Nf6 {[%emt 0:17:41]} 19. Nc5 {[%emt 0:05:20]} Nd7 {[%emt 0:02:24]} 20. Qe3 {[%emt 0:12:15]} Nxc5 {[%emt 0:04:42]} 21. Qxc5 {[%emt 0:00:09]} Qb6 {[%emt 0:00:56]} 22. Bh7+ {[%emt 0:03:11]} Kxh7 {[%emt 0:00:25]} 23. Qxf8 {[%emt 0:00:07]} Be6 {[%emt 0:00:53]} 24. Qd6 {[%emt 0:00:14]} Rd8 {[%emt 0:01:03]} 25. Qf4 {[%emt 0:01:53]} c5 {[%emt 0:00:33]} 26. Qe5 {[%emt 0:10:05]} d4 {[%emt 0:01:06]} 27. Qe4+ {[%emt 0:00:25]} g6 {[%emt 0:00:49]} 28. b3 {[%emt 0:00:39]} Bf5 {[%emt 0:00:48]} 29. Qe7 {[%emt 0:01:07]} Kg7 {[%emt 0:00:05]} 30. Rbc1 {[%emt 0:00:41]} Rd7 {[%emt 0:00:45]} 31. Qe5+ {[%emt 0:01:03]} Kh7 {[%emt 0:00:22]} 32. Qe8 {[%emt 0:01:41]} Be6 {[%emt 0:00:10]} 33. Re4 {[%emt 0:08:13]} Qd6 {[%emt 0:00:25]} 34. Rce1 {[%emt 0:02:06]} Rd8 {[%emt 0:00:42]} 35. Qa4 {[%emt 0:00:59]} Rd7 {[%emt 0:00:17]} 36. g4 {[%emt 0:01:14]} 1/2-1/2

[Event "22nd Ruzomberok Open 2019"]
[Site "Ruzomberok"]
[Date "2019.06.30"]
[Round "2.18"]
[White "Bednar, Jan"]
[Black "Taragelova, Martina"]
[Result "1-0"]
[ECO "A22"]
[WhiteElo "2084"]
[BlackElo "1719"]
[Annotator "NA"]
[PlyCount "97"]
[EventDate "2019.06.29"]
[EventType "swiss"]
[EventCountry "SVK"]
[SourceTitle "playchess.com"]
[Source "ChessBase"]
[SourceQuality "1"]
[TimeControl "40/5400+30:1800+30"]

1. c4 {[%emt 0:01:41]} e5 {[%emt 0:00:00]} 2. Nc3 {[%emt 0:00:05]} Nf6 {[%emt 0:00:00]} 3. g3 {[%emt 0:00:12]} d5 {[%emt 0:00:10]} 4. cxd5 {[%emt 0:00:05]} Nxd5 {[%emt 0:00:17]} 5. Bg2 {[%emt 0:00:24]} Nb6 {[%emt 0:00:20]} 6. Nf3 {[%emt 0:00:07]} Nc6 {[%emt 0:00:14]} 7. O-O {[%emt 0:00:12]} Be7 {[%emt 0:00:33]} 8. a3 {[%emt 0:00:12]} O-O {[%emt 0:01:13]} 9. b4 {[%emt 0:00:49]} Be6 {[%emt 0:01:57]} 10. d3 {[%emt 0:00:50]} f6 {[%emt 0:04:17]} 11. Be3 {[%emt 0:01:01]} Nd4 {[%emt 0:06:55]} 12. Bxd4 {[%emt 0:08:43]} exd4 {[%emt 0:00:16]} 13. Nb5 {[%emt 0:00:11]} c5 {[%emt 0:06:05]} 14. bxc5 {[%emt 0:05:57]} Bxc5 {[%emt 0:00:14]} 15. Rc1 {[%emt 0:00:12]} a6 {[%emt 0:09:48]} 16. Rxc5 {[%emt 0:01:16]} axb5 {[%emt 0:02:36]} 17. Rxb5 {[%emt 0:01:43]} Rxa3 {[%emt 0:08:51]} 18. Qc1 {[%emt 0:03:42]} Rc3 {[%emt 0:12:00]} 19. Qb2 {[%emt 0:00:56]} Nc8 {[%emt 0:06:26]} 20. Rxb7 {[%emt 0:01:50]} Bd5 {[%emt 0:05:58]} 21. Nxd4 {[%emt 0:06:16]} Bxg2 {[%emt 0:05:06]} 22. Rxg7+ {[%emt 0:03:20]} Kh8 {[%emt 0:00:38]} 23. Qxc3 {[%emt 0:00:24]} Bxf1 {[%emt 0:07:31]} 24. Kxf1 {[%emt 0:00:19]} Qd5 {[%emt 0:09:14]} 25. e4 {[%emt 0:00:12]} Qh5 {[%emt 0:01:42]} 26. Kg2 {[%emt 0:03:22]} Kxg7 {[%emt 0:04:01]} 27. Ne6+ {[%emt 0:00:14]} Kg8 {[%emt 0:01:12]} 28. Nxf8 {[%emt 0:00:07]} Qe8 {[%emt 0:00:57]} 29. Nxh7 {[%emt 0:00:24]} Kxh7 {[%emt 0:00:10]} 30. Qxf6 {[%emt 0:00:10]} Ne7 {[%emt 0:01:08]} 31. h4 {[%emt 0:01:17]} Ng6 {[%emt 0:02:47]} 32. h5 {[%emt 0:00:39]} Ne5 {[%emt 0:01:34]} 33. d4 {[%emt 0:00:47]} Nd7 {[%emt 0:01:01]} 34. Qf5+ {[%emt 0:00:51]} Kh8 {[%emt 0:00:29]} 35. g4 {[%emt 0:00:38]} Qe7 {[%emt 0:00:56]} 36. g5 {[%emt 0:00:52]} Qe8 {[%emt 0:00:33]} 37. h6 {[%emt 0:00:33]} Kg8 {[%emt 0:00:39]} 38. g6 {[%emt 0:01:11]} Kh8 {[%emt 0:00:29]} 39. g7+ {[%emt 0:01:29]} Kg8 {[%emt 0:00:13]} 40. Qd5+ {[%emt 0:00:14]} Kh7 {[%emt 0:00:41]} 41. Kf1 {[%emt 0:39:38]} Nb6 {[%emt 0:07:51]} 42. g8=Q+ {[%emt 0:00:00]} Qxg8 {[%emt 0:00:29]} 43. Qb7+ {[%emt 0:00:00]} Kh8 {[%emt 0:00:26]} 44. Qxb6 {[%emt 0:00:00]} Qc4+ {[%emt 0:00:09]} 45. Kg2 {[%emt 0:00:00]} Qg8+ {[%emt 0:00:53]} 46. Kf3 {[%emt 0:00:00]} Qf8+ {[%emt 0:01:55]} 47. Kg3 {[%emt 0:00:00]} Qg8+ {[%emt 0:00:42]} 48. Kh4 {[%emt 0:00:00]} Qd8+ {[%emt 0:01:27]} 49. Qxd8+ {[%emt 0:00:00]} 1-0